[Event "Early-Titled-Tuesday-Blitz-November-28-2023"]
[Site "Chess.com"]
[Date "2023.11.28"]
[Round "9"]
[White "Roedor"]
[Black "Ezov"]
[Result "1/2-1/2"]
[WhiteElo "2398"]
[BlackElo "2220"]
[TimeControl "180+1"]
[EndTime "9:46:18 PST"]
[Termination "Game drawn by repetition"]

1. d4 {[%clk 0:02:56.2]} 1... d5 {[%clk 0:02:59.1]} 2. c4 {[%clk 0:02:55.8]}
2... c6 {[%clk 0:02:58.9]} 3. Nf3 {[%clk 0:02:55.6]} 3... Nf6 {[%clk 0:02:58.2]}
4. e3 {[%clk 0:02:55.3]} 4... e6 {[%clk 0:02:57.6]} 5. b3 {[%clk 0:02:51.7]}
5... Be7 {[%clk 0:02:54.5]} 6. Bd3 {[%clk 0:02:50.3]} 6... Ne4 {[%clk
0:02:53.9]} 7. O-O {[%clk 0:02:49.9]} 7... f5 {[%clk 0:02:52.6]} 8. Ba3 {[%clk
0:02:49.6]} 8... O-O {[%clk 0:02:48.6]} 9. Qc2 {[%clk 0:02:48.2]} 9... Nd7
{[%clk 0:02:45]} 10. Bxe7 {[%clk 0:02:48.1]} 10... Qxe7 {[%clk 0:02:44.5]} 11.
Nc3 {[%clk 0:02:49]} 11... Ndf6 {[%clk 0:02:41.5]} 12. Ne2 {[%clk 0:02:46.5]}
12... Bd7 {[%clk 0:02:40.1]} 13. Rab1 {[%clk 0:02:46.4]} 13... Be8 {[%clk
0:02:39.2]} 14. b4 {[%clk 0:02:46.5]} 14... Bh5 {[%clk 0:02:38.4]} 15. Ne5
{[%clk 0:02:46.8]} 15... Bxe2 {[%clk 0:02:36.5]} 16. Qxe2 {[%clk 0:02:45.7]}
16... Nc3 {[%clk 0:02:33.9]} 17. Qc2 {[%clk 0:02:41.1]} 17... Nxb1 {[%clk
0:02:33.4]} 18. Rxb1 {[%clk 0:02:42]} 18... Nd7 {[%clk 0:02:31.2]} 19. Nf3
{[%clk 0:02:41.7]} 19... Nf6 {[%clk 0:02:28]} 20. Ne5 {[%clk 0:02:41.2]} 20...
Nd7 {[%clk 0:02:27.6]} 21. Nf3 {[%clk 0:02:41.2]} 21... Nf6 {[%clk 0:02:27.6]}
22. Ne5 {[%clk 0:02:41.5]} 1/2-1/2

[Event "Early-Titled-Tuesday-Blitz-November-28-2023"]
[Site "Chess.com"]
[Date "2023.11.28"]
[Round "9"]
[White "Cheer_Down"]
[Black "GatoRojo150"]
[Result "1/2-1/2"]
[WhiteElo "2509"]
[BlackElo "2615"]
[TimeControl "180+1"]
[EndTime "9:47:00 PST"]
[Termination "Game drawn by repetition"]

1. d4 {[%clk 0:03:00.9]} 1... d5 {[%clk 0:02:59.6]} 2. Bf4 {[%clk 0:02:59.4]}
2... c5 {[%clk 0:02:59.5]} 3. e3 {[%clk 0:02:59.3]} 3... Nc6 {[%clk 0:02:59.7]}
4. Nf3 {[%clk 0:02:58.4]} 4... Nf6 {[%clk 0:02:58.5]} 5. Nbd2 {[%clk 0:02:56.7]}
5... cxd4 {[%clk 0:02:57.4]} 6. exd4 {[%clk 0:02:56.3]} 6... Bf5 {[%clk
0:02:57.5]} 7. c3 {[%clk 0:02:51]} 7... e6 {[%clk 0:02:56.6]} 8. Be2 {[%clk
0:02:50.4]} 8... Bd6 {[%clk 0:02:52.9]} 9. Bxd6 {[%clk 0:02:49.5]} 9... Qxd6
{[%clk 0:02:52.8]} 10. O-O {[%clk 0:02:49.6]} 10... O-O {[%clk 0:02:51.9]} 11.
Nb3 {[%clk 0:02:45]} 11... Ne4 {[%clk 0:02:49.4]} 12. Re1 {[%clk 0:02:41.8]}
12... Bg4 {[%clk 0:02:43.3]} 13. Nfd2 {[%clk 0:02:40.1]} 13... Bxe2 {[%clk
0:02:33.7]} 14. Qxe2 {[%clk 0:02:37.1]} 14... Nf6 {[%clk 0:02:18.3]} 15. Nc5
{[%clk 0:02:34.4]} 15... b6 {[%clk 0:02:17.1]} 16. Nd3 {[%clk 0:02:34.5]} 16...
Rac8 {[%clk 0:02:09]} 17. Nf3 {[%clk 0:02:32.3]} 17... Ne4 {[%clk 0:02:08]} 18.
Nd2 {[%clk 0:02:32.4]} 18... Nf6 {[%clk 0:01:47.3]} 19. Nf3 {[%clk 0:02:31.9]}
19... Ne4 {[%clk 0:01:47.5]} 20. Nd2 {[%clk 0:02:31.7]} 20... Nf6 {[%clk
0:01:47.3]} 1/2-1/2

[Event "Early-Titled-Tuesday-Blitz-November-28-2023"]
[Site "Chess.com"]
[Date "2023.11.28"]
[Round "9"]
[White "TigrVShlyape"]
[Black "Oleksandr_Bortnyk"]
[Result "1/2-1/2"]
[WhiteElo "2983"]
[BlackElo "3060"]
[TimeControl "180+1"]
[EndTime "9:47:46 PST"]
[Termination "Game drawn by agreement"]

1. e4 {[%clk 0:03:00.9]} 1... Nf6 {[%clk 0:02:55.8]} 2. e5 {[%clk 0:02:57.1]}
2... Nd5 {[%clk 0:02:55.8]} 3. d4 {[%clk 0:02:57.4]} 3... d6 {[%clk 0:02:56]} 4.
Nf3 {[%clk 0:02:57.8]} 4... dxe5 {[%clk 0:02:56.2]} 5. Nxe5 {[%clk 0:02:57.3]}
5... c6 {[%clk 0:02:56.6]} 6. c3 {[%clk 0:02:54.1]} 6... Nd7 {[%clk 0:02:40]} 7.
Nxd7 {[%clk 0:02:39.5]} 7... Bxd7 {[%clk 0:02:33.6]} 8. Nd2 {[%clk 0:02:34.8]}
8... Bf5 {[%clk 0:02:31.8]} 9. Nc4 {[%clk 0:02:30]} 9... e6 {[%clk 0:02:31]} 10.
Bd3 {[%clk 0:02:28.4]} 10... Bg6 {[%clk 0:02:27.5]} 11. O-O {[%clk 0:02:25.7]}
11... Bd6 {[%clk 0:02:23]} 12. Nxd6+ {[%clk 0:02:13]} 12... Qxd6 {[%clk
0:02:23.9]} 13. Re1 {[%clk 0:02:00.9]} 13... O-O {[%clk 0:02:23.6]} 14. Bc4
{[%clk 0:01:56.1]} 14... Rfd8 {[%clk 0:02:19.8]} 15. Bg5 {[%clk 0:01:54.8]}
15... Rd7 {[%clk 0:02:20.1]} 16. Qf3 {[%clk 0:01:51.5]} 1/2-1/2

[Event "Early-Titled-Tuesday-Blitz-November-28-2023"]
[Site "Chess.com"]
[Date "2023.11.28"]
[Round "9"]
[White "FM-to-GM"]
[Black "ArtemDyachuk"]
[Result "0-1"]
[WhiteElo "2663"]
[BlackElo "2540"]
[TimeControl "180+1"]
[EndTime "9:48:21 PST"]
[Termination "ArtemDyachuk won by resignation"]

1. e4 {[%clk 0:03:00.9]} 1... e5 {[%clk 0:02:57]} 2. Nf3 {[%clk 0:02:59.1]} 2...
Nf6 {[%clk 0:02:56.7]} 3. Nxe5 {[%clk 0:02:58]} 3... d6 {[%clk 0:02:56.6]} 4.
Nf3 {[%clk 0:02:57.4]} 4... Nxe4 {[%clk 0:02:55.9]} 5. c4 {[%clk 0:02:58]} 5...
Be7 {[%clk 0:02:53.7]} 6. d3 {[%clk 0:02:54.7]} 6... Nf6 {[%clk 0:02:52.1]} 7.
d4 {[%clk 0:02:54.7]} 7... d5 {[%clk 0:02:45.8]} 8. c5 {[%clk 0:02:49.7]} 8...
O-O {[%clk 0:02:42.6]} 9. Bd3 {[%clk 0:02:49]} 9... b6 {[%clk 0:02:39.9]} 10.
Qc2 {[%clk 0:02:45.4]} 10... Na6 {[%clk 0:02:33.7]} 11. Bg5 {[%clk 0:02:37.7]}
11... Nb4 {[%clk 0:02:29.2]} 12. Qc3 {[%clk 0:02:33]} 12... Nxd3+ {[%clk
0:02:23.3]} 13. Qxd3 {[%clk 0:02:33.3]} 13... a5 {[%clk 0:02:23.9]} 14. cxb6
{[%clk 0:02:30.5]} 14... Ba6 {[%clk 0:02:14.5]} 15. bxc7 {[%clk 0:02:27.9]}
15... Qxc7 {[%clk 0:02:00.6]} 16. Qf5 {[%clk 0:02:06.5]} 16... Bb4+ {[%clk
0:01:30]} 17. Nbd2 {[%clk 0:02:04.1]} 17... Qc4 {[%clk 0:01:27.2]} 18. Ng1
{[%clk 0:01:31.5]} 0-1

[Event "Early-Titled-Tuesday-Blitz-November-28-2023"]
[Site "Chess.com"]
[Date "2023.11.28"]
[Round "9"]
[White "deribas12345"]
[Black "VitaliyChayka"]
[Result "0-1"]
[WhiteElo "2538"]
[BlackElo "2441"]
[TimeControl "180+1"]
[EndTime "9:48:22 PST"]
[Termination "VitaliyChayka won by resignation"]

1. d4 {[%clk 0:03:00.9]} 1... d6 {[%clk 0:02:59.9]} 2. c4 {[%clk 0:03:00.9]}
2... e5 {[%clk 0:02:58.1]} 3. d5 {[%clk 0:02:59.2]} 3... Be7 {[%clk 0:02:57.5]}
4. e4 {[%clk 0:02:58.5]} 4... Bg5 {[%clk 0:02:56.9]} 5. Nc3 {[%clk 0:02:56.2]}
5... a5 {[%clk 0:02:54.6]} 6. Nf3 {[%clk 0:02:55.2]} 6... Bxc1 {[%clk
0:02:53.1]} 7. Rxc1 {[%clk 0:02:54.6]} 7... Na6 {[%clk 0:02:53.7]} 8. Be2 {[%clk
0:02:33.1]} 8... Nf6 {[%clk 0:02:53]} 9. O-O {[%clk 0:02:33]} 9... Nc5 {[%clk
0:02:51.8]} 10. Nd2 {[%clk 0:02:32.2]} 10... O-O {[%clk 0:02:50.6]} 11. f3
{[%clk 0:02:31.9]} 11... Nh5 {[%clk 0:02:47.2]} 12. g3 {[%clk 0:02:30.2]} 12...
Qg5 {[%clk 0:02:32.2]} 13. Kh1 {[%clk 0:02:25.3]} 13... Qh6 {[%clk 0:02:12.4]}
14. Rg1 {[%clk 0:02:21]} 14... Bd7 {[%clk 0:02:05.2]} 15. f4 {[%clk 0:01:59.4]}
15... Nf6 {[%clk 0:01:58.4]} 16. Qf1 {[%clk 0:01:40]} 16... Rae8 {[%clk
0:01:46.4]} 17. f5 {[%clk 0:01:36.1]} 17... Qxd2 {[%clk 0:01:45.2]} 18. Bf3
{[%clk 0:01:32.6]} 18... Nd3 {[%clk 0:01:32.5]} 19. Rc2 {[%clk 0:01:30.7]} 19...
Qxc2 {[%clk 0:01:28.9]} 0-1

[Event "Early-Titled-Tuesday-Blitz-November-28-2023"]
[Site "Chess.com"]
[Date "2023.11.28"]
[Round "9"]
[White "margarita_2703"]
[Black "wqws"]
[Result "0-1"]
[WhiteElo "2358"]
[BlackElo "2593"]
[TimeControl "180+1"]
[EndTime "9:48:30 PST"]
[Termination "wqws won by resignation"]

1. e4 {[%clk 0:03:00.9]} 1... e5 {[%clk 0:02:58.5]} 2. Nf3 {[%clk 0:02:52.4]}
2... Nc6 {[%clk 0:02:57.2]} 3. Bc4 {[%clk 0:02:52.4]} 3... Nf6 {[%clk
0:02:56.6]} 4. Ng5 {[%clk 0:02:47.5]} 4... d5 {[%clk 0:02:56.3]} 5. exd5 {[%clk
0:02:48.4]} 5... Na5 {[%clk 0:02:56.8]} 6. d3 {[%clk 0:02:47.9]} 6... h6 {[%clk
0:02:56.1]} 7. Nf3 {[%clk 0:02:47.6]} 7... e4 {[%clk 0:02:54]} 8. Qe2 {[%clk
0:02:46]} 8... Nxc4 {[%clk 0:02:48.8]} 9. dxc4 {[%clk 0:02:45.8]} 9... Bc5
{[%clk 0:02:48.7]} 10. O-O {[%clk 0:02:40.8]} 10... O-O {[%clk 0:02:49]} 11.
Nfd2 {[%clk 0:02:40.4]} 11... Bg4 {[%clk 0:02:49.2]} 12. Qe1 {[%clk 0:02:38.5]}
12... Re8 {[%clk 0:02:44.2]} 13. Nb3 {[%clk 0:02:37.7]} 13... Bd6 {[%clk
0:02:44.5]} 14. h3 {[%clk 0:02:33.6]} 14... Bf5 {[%clk 0:02:28.5]} 15. Nd4
{[%clk 0:02:33.3]} 15... Bd7 {[%clk 0:02:26.8]} 16. Nc3 {[%clk 0:02:32.3]} 16...
Qc8 {[%clk 0:02:27.2]} 17. Qe3 {[%clk 0:02:27.9]} 17... Re5 {[%clk 0:02:21.6]}
18. Ndb5 {[%clk 0:02:17.9]} 18... Rh5 {[%clk 0:02:21.1]} 19. Nxd6 {[%clk
0:02:15.7]} 19... cxd6 {[%clk 0:02:22]} 20. Nxe4 {[%clk 0:02:13.2]} 20... Qxc4
{[%clk 0:02:00.8]} 21. Nxf6+ {[%clk 0:02:07.3]} 21... gxf6 {[%clk 0:02:01.7]}
22. Qg3+ {[%clk 0:02:03.8]} 22... Kh7 {[%clk 0:01:58.6]} 23. Qxd6 {[%clk
0:02:00.1]} 23... Bxh3 {[%clk 0:01:55.6]} 24. Qxf6 {[%clk 0:01:57.3]} 24... Rf5
{[%clk 0:01:42.8]} 25. Qh4 {[%clk 0:01:32.1]} 25... Qxh4 {[%clk 0:01:41.8]} 0-1

[Event "Early-Titled-Tuesday-Blitz-November-28-2023"]
[Site "Chess.com"]
[Date "2023.11.28"]
[Round "9"]
[White "HATilay"]
[Black "carokannlover213"]
[Result "0-1"]
[WhiteElo "2525"]
[BlackElo "2690"]
[TimeControl "180+1"]
[EndTime "9:48:52 PST"]
[Termination "carokannlover213 won by resignation"]

1. d4 {[%clk 0:03:00.9]} 1... Nf6 {[%clk 0:02:59.4]} 2. c4 {[%clk 0:03:01.3]}
2... e6 {[%clk 0:02:59.1]} 3. Nc3 {[%clk 0:03:01.6]} 3... Bb4 {[%clk 0:02:52.8]}
4. e3 {[%clk 0:03:01.9]} 4... O-O {[%clk 0:02:52.9]} 5. Bd3 {[%clk 0:03:02.1]}
5... Re8 {[%clk 0:02:53.6]} 6. Nf3 {[%clk 0:03:01]} 6... Bxc3+ {[%clk
0:02:54.1]} 7. bxc3 {[%clk 0:03:01]} 7... d6 {[%clk 0:02:55]} 8. e4 {[%clk
0:02:59.1]} 8... e5 {[%clk 0:02:55.4]} 9. O-O {[%clk 0:02:59.7]} 9... exd4
{[%clk 0:02:55.4]} 10. cxd4 {[%clk 0:03:00.5]} 10... Bg4 {[%clk 0:02:54]} 11.
Qb3 {[%clk 0:02:52.2]} 11... Nc6 {[%clk 0:02:47.4]} 12. Qxb7 {[%clk 0:02:35.1]}
12... Bxf3 {[%clk 0:02:46.5]} 13. Qxc6 {[%clk 0:02:35.8]} 13... Bxe4 {[%clk
0:02:46.7]} 14. Bxe4 {[%clk 0:02:35.7]} 14... Nxe4 {[%clk 0:02:47.2]} 15. Be3
{[%clk 0:02:24.2]} 15... Rb8 {[%clk 0:02:45.3]} 16. Rab1 {[%clk 0:02:20.9]}
16... Rb6 {[%clk 0:02:42.7]} 17. Qa4 {[%clk 0:01:32.4]} 17... Nc3 {[%clk
0:02:41.2]} 18. Qc2 {[%clk 0:01:26.1]} 18... Nxb1 {[%clk 0:02:37.8]} 19. Rxb1
{[%clk 0:01:26.8]} 19... Rxb1+ {[%clk 0:02:38.3]} 20. Qxb1 {[%clk 0:01:27.1]}
20... Qb8 {[%clk 0:02:37.3]} 21. Qc2 {[%clk 0:01:23.2]} 21... Qb7 {[%clk
0:02:35.9]} 22. h3 {[%clk 0:01:18.7]} 22... Qe4 {[%clk 0:02:35.4]} 23. Qa4
{[%clk 0:01:17.1]} 23... f5 {[%clk 0:02:26.2]} 24. g3 {[%clk 0:00:58.3]} 24...
Rb8 {[%clk 0:02:12.4]} 0-1

[Event "Early-Titled-Tuesday-Blitz-November-28-2023"]
[Site "Chess.com"]
[Date "2023.11.28"]
[Round "9"]
[White "Shuvalov"]
[Black "YouShallNotPass001"]
[Result "1-0"]
[WhiteElo "2576"]
[BlackElo "2447"]
[TimeControl "180+1"]
[EndTime "9:48:52 PST"]
[Termination "Shuvalov won by resignation"]

1. d4 {[%clk 0:03:00.9]} 1... Nf6 {[%clk 0:03:00.3]} 2. c4 {[%clk 0:03:00.4]}
2... e6 {[%clk 0:03:01.2]} 3. Nc3 {[%clk 0:03:00.2]} 3... d5 {[%clk 0:03:01.8]}
4. Nf3 {[%clk 0:02:59.9]} 4... Bb4 {[%clk 0:03:01.2]} 5. Bg5 {[%clk 0:02:58.9]}
5... Nbd7 {[%clk 0:02:58]} 6. cxd5 {[%clk 0:02:58.2]} 6... exd5 {[%clk
0:02:57.5]} 7. Qc2 {[%clk 0:02:58.4]} 7... h6 {[%clk 0:02:53.2]} 8. Bh4 {[%clk
0:02:58.2]} 8... g5 {[%clk 0:02:51.2]} 9. Bg3 {[%clk 0:02:58.4]} 9... Ne4 {[%clk
0:02:51.7]} 10. Nd2 {[%clk 0:02:57.4]} 10... Nxd2 {[%clk 0:02:48.8]} 11. Qxd2
{[%clk 0:02:56.6]} 11... c6 {[%clk 0:02:48.8]} 12. e3 {[%clk 0:02:54.7]} 12...
Nf6 {[%clk 0:02:45]} 13. Bd3 {[%clk 0:02:53.6]} 13... Qe7 {[%clk 0:02:43.5]} 14.
h4 {[%clk 0:02:41.2]} 14... Rg8 {[%clk 0:02:40.5]} 15. hxg5 {[%clk 0:02:40.7]}
15... hxg5 {[%clk 0:02:41.4]} 16. O-O-O {[%clk 0:02:36.3]} 16... Be6 {[%clk
0:02:33.6]} 17. Qc2 {[%clk 0:02:33.3]} 17... O-O-O {[%clk 0:02:32.2]} 18. Qa4
{[%clk 0:02:01.8]} 18... b5 {[%clk 0:02:19.5]} 19. Nxb5 {[%clk 0:01:48.4]} 19...
cxb5 {[%clk 0:02:16.7]} 20. Bxb5 {[%clk 0:01:48.9]} 20... Bd6 {[%clk 0:02:11.6]}
21. Ba6+ {[%clk 0:01:39.7]} 21... Kb8 {[%clk 0:01:46.7]} 22. Qb5+ {[%clk
0:01:19.6]} 22... Ka8 {[%clk 0:01:42.3]} 23. Qc6+ {[%clk 0:01:17.8]} 23... Kb8
{[%clk 0:01:42.6]} 24. Rd3 {[%clk 0:01:12.1]} 24... Rc8 {[%clk 0:01:39.8]} 25.
Rb3+ {[%clk 0:01:10.9]} 25... Qb7 {[%clk 0:01:36.9]} 26. Rxb7+ {[%clk
0:01:08.6]} 1-0

[Event "Early-Titled-Tuesday-Blitz-November-28-2023"]
[Site "Chess.com"]
[Date "2023.11.28"]
[Round "9"]
[White "Korchmar_Vasiliy"]
[Black "WindWhistler11"]
[Result "1-0"]
[WhiteElo "2727"]
[BlackElo "2558"]
[TimeControl "180+1"]
[EndTime "9:49:46 PST"]
[Termination "Korchmar_Vasiliy won by resignation"]

1. e4 {[%clk 0:03:00.9]} 1... e6 {[%clk 0:02:59.8]} 2. d4 {[%clk 0:03:01]} 2...
d5 {[%clk 0:03:00.4]} 3. e5 {[%clk 0:03:01.7]} 3... c5 {[%clk 0:03:00.3]} 4. c3
{[%clk 0:03:02.3]} 4... Nc6 {[%clk 0:03:01]} 5. Nf3 {[%clk 0:03:02.6]} 5... Bd7
{[%clk 0:03:01.7]} 6. Be2 {[%clk 0:03:02.7]} 6... Nge7 {[%clk 0:03:01.9]} 7. Na3
{[%clk 0:03:03.1]} 7... cxd4 {[%clk 0:03:00.7]} 8. cxd4 {[%clk 0:03:04]} 8...
Nf5 {[%clk 0:03:01.1]} 9. Nc2 {[%clk 0:03:04.6]} 9... Be7 {[%clk 0:03:01.2]} 10.
O-O {[%clk 0:03:05.1]} 10... f6 {[%clk 0:03:01.5]} 11. g4 {[%clk 0:02:56.3]}
11... fxe5 {[%clk 0:02:24.2]} 12. gxf5 {[%clk 0:02:55.9]} 12... e4 {[%clk
0:02:22]} 13. fxe6 {[%clk 0:02:52.1]} 13... Bxe6 {[%clk 0:02:21.4]} 14. Ne5
{[%clk 0:02:48.4]} 14... O-O {[%clk 0:02:18]} 15. Be3 {[%clk 0:02:37.5]} 15...
Bd6 {[%clk 0:02:16.6]} 16. f4 {[%clk 0:02:26.6]} 16... exf3 {[%clk 0:01:55.8]}
17. Bxf3 {[%clk 0:02:25.6]} 17... Qh4 {[%clk 0:01:37.8]} 18. Qe1 {[%clk
0:02:19]} 18... Qxe1 {[%clk 0:01:29]} 19. Raxe1 {[%clk 0:02:17.2]} 19... Bxe5
{[%clk 0:01:29.7]} 20. dxe5 {[%clk 0:02:17.1]} 20... Nxe5 {[%clk 0:01:30.6]} 21.
Nd4 {[%clk 0:02:10.6]} 21... Bf7 {[%clk 0:01:20.6]} 22. Bg2 {[%clk 0:02:06.6]}
22... Nd3 {[%clk 0:01:15.1]} 23. Re2 {[%clk 0:02:03.6]} 23... Rae8 {[%clk
0:01:14.7]} 24. b3 {[%clk 0:01:56]} 24... Bh5 {[%clk 0:01:06.6]} 25. Bxd5+
{[%clk 0:01:56.1]} 25... Kh8 {[%clk 0:01:05.2]} 26. Rxf8+ {[%clk 0:01:56.4]}
26... Rxf8 {[%clk 0:01:05.5]} 27. Rd2 {[%clk 0:01:56]} 27... Ne5 {[%clk
0:01:01.9]} 28. Ne6 {[%clk 0:01:53.5]} 28... Rc8 {[%clk 0:00:59.6]} 29. Bd4
{[%clk 0:01:46]} 29... Rc1+ {[%clk 0:00:40.8]} 30. Kg2 {[%clk 0:01:45.3]} 30...
Re1 {[%clk 0:00:37.7]} 31. Kf2 {[%clk 0:01:39.5]} 1-0

[Event "Early-Titled-Tuesday-Blitz-November-28-2023"]
[Site "Chess.com"]
[Date "2023.11.28"]
[Round "9"]
[White "DarZay"]
[Black "MIss_MIaMI"]
[Result "0-1"]
[WhiteElo "2248"]
[BlackElo "2406"]
[TimeControl "180+1"]
[EndTime "9:49:54 PST"]
[Termination "MIss_MIaMI won by resignation"]

1. e4 {[%clk 0:02:57.2]} 1... c5 {[%clk 0:03:00.4]} 2. Nf3 {[%clk 0:02:56.6]}
2... e6 {[%clk 0:03:01]} 3. d4 {[%clk 0:02:55.4]} 3... cxd4 {[%clk 0:03:01.9]}
4. Nxd4 {[%clk 0:02:55.5]} 4... a6 {[%clk 0:03:02.5]} 5. Nc3 {[%clk 0:02:54.3]}
5... Qc7 {[%clk 0:03:02.6]} 6. a4 {[%clk 0:02:52.3]} 6... Bb4 {[%clk 0:03:02.6]}
7. Bd2 {[%clk 0:02:52.1]} 7... Nf6 {[%clk 0:03:03.1]} 8. Bd3 {[%clk 0:02:50.3]}
8... O-O {[%clk 0:02:59.3]} 9. O-O {[%clk 0:02:49.5]} 9... Bd6 {[%clk 0:03:00]}
10. f4 {[%clk 0:02:48.5]} 10... Bc5 {[%clk 0:02:59.9]} 11. Be3 {[%clk 0:02:44]}
11... Nc6 {[%clk 0:03:00]} 12. Nce2 {[%clk 0:02:41.5]} 12... Ng4 {[%clk
0:03:00]} 13. Qd2 {[%clk 0:02:36.6]} 13... e5 {[%clk 0:02:30.4]} 14. fxe5 {[%clk
0:02:34.7]} 14... Qxe5 {[%clk 0:02:29.3]} 15. Nf3 {[%clk 0:01:44.2]} 15... Bxe3+
{[%clk 0:02:11.5]} 16. Qxe3 {[%clk 0:01:42.4]} 16... Nxe3 {[%clk 0:02:12.4]} 17.
Nxe5 {[%clk 0:01:42.3]} 17... Nxe5 {[%clk 0:02:13.3]} 18. Rf4 {[%clk 0:01:35.3]}
18... Nxd3 {[%clk 0:01:54.5]} 19. cxd3 {[%clk 0:01:35.2]} 19... Nc2 {[%clk
0:01:55.2]} 20. Rc1 {[%clk 0:01:32.1]} 20... Nb4 {[%clk 0:01:55.2]} 21. d4
{[%clk 0:01:31.9]} 21... Nd3 {[%clk 0:01:54.5]} 22. Rff1 {[%clk 0:01:30.7]}
22... Nxc1 {[%clk 0:01:54.8]} 23. Rxc1 {[%clk 0:01:30.2]} 23... d6 {[%clk
0:01:54.5]} 24. d5 {[%clk 0:01:29.8]} 24... Re8 {[%clk 0:01:53.2]} 25. Ng3
{[%clk 0:01:25.4]} 25... Bd7 {[%clk 0:01:48.1]} 26. Rc7 {[%clk 0:01:23.9]} 26...
Bxa4 {[%clk 0:01:47.9]} 27. Rxb7 {[%clk 0:01:24.3]} 27... g6 {[%clk 0:01:42.1]}
28. Rb6 {[%clk 0:01:23.8]} 28... Bb5 {[%clk 0:01:42.8]} 29. Rxd6 {[%clk
0:01:23.6]} 29... h5 {[%clk 0:01:39]} 30. h4 {[%clk 0:01:22.4]} 30... Rac8
{[%clk 0:01:29.5]} 31. Rb6 {[%clk 0:01:19.1]} 31... Rc1+ {[%clk 0:01:21.3]} 32.
Kh2 {[%clk 0:01:18.8]} 32... Rc2 {[%clk 0:01:21.7]} 33. b4 {[%clk 0:01:16.5]}
33... Rc4 {[%clk 0:01:20.1]} 34. d6 {[%clk 0:01:16]} 34... Rxb4 {[%clk
0:01:17.1]} 35. e5 {[%clk 0:00:53.9]} 35... Rxh4+ {[%clk 0:01:16.5]} 36. Kg1
{[%clk 0:00:53.6]} 36... Rxe5 {[%clk 0:01:17.2]} 0-1

[Event "Early-Titled-Tuesday-Blitz-November-28-2023"]
[Site "Chess.com"]
[Date "2023.11.28"]
[Round "9"]
[White "Ariadna_Atreides"]
[Black "ElVital"]
[Result "0-1"]
[WhiteElo "2190"]
[BlackElo "2354"]
[TimeControl "180+1"]
[EndTime "9:49:58 PST"]
[Termination "ElVital won on time"]

1. d4 {[%clk 0:02:02.6]} 1... Nf6 {[%clk 0:02:56.3]} 2. Nf3 {[%clk 0:02:02.3]}
2... g6 {[%clk 0:02:55.6]} 3. b3 {[%clk 0:01:56.3]} 3... Bg7 {[%clk 0:02:55]} 4.
Bb2 {[%clk 0:01:56.7]} 4... c5 {[%clk 0:02:54.6]} 5. dxc5 {[%clk 0:01:56.3]}
5... Na6 {[%clk 0:02:46.1]} 6. Bd4 {[%clk 0:01:47]} 6... O-O {[%clk 0:02:43.6]}
7. Nbd2 {[%clk 0:01:45.5]} 7... b6 {[%clk 0:02:39.6]} 8. cxb6 {[%clk 0:01:43.8]}
8... axb6 {[%clk 0:02:40.2]} 9. e3 {[%clk 0:01:42.6]} 9... Bb7 {[%clk 0:02:40]}
10. Be2 {[%clk 0:01:39.8]} 10... Nc5 {[%clk 0:02:39]} 11. O-O {[%clk 0:01:38.6]}
11... d6 {[%clk 0:02:38.6]} 12. a4 {[%clk 0:01:37.4]} 12... Qc7 {[%clk
0:02:25.5]} 13. Nc4 {[%clk 0:01:36.2]} 13... Rfd8 {[%clk 0:02:20.9]} 14. Rc1
{[%clk 0:01:32.2]} 14... e5 {[%clk 0:02:15.7]} 15. Ba1 {[%clk 0:01:31.2]} 15...
Nfe4 {[%clk 0:02:15.4]} 16. Nfd2 {[%clk 0:01:18.4]} 16... d5 {[%clk 0:02:05.8]}
17. Na3 {[%clk 0:01:09.4]} 17... d4 {[%clk 0:01:58.8]} 18. exd4 {[%clk
0:01:01.2]} 18... exd4 {[%clk 0:01:57.5]} 19. Nb5 {[%clk 0:00:53.1]} 19... Qe7
{[%clk 0:01:56.2]} 20. Bf3 {[%clk 0:00:42.7]} 20... Nc3 {[%clk 0:01:54.7]} 21.
Qe1 {[%clk 0:00:35.6]} 21... Qxe1 {[%clk 0:01:48]} 22. Rfxe1 {[%clk 0:00:36.5]}
22... Bxf3 {[%clk 0:01:47.1]} 23. Nxf3 {[%clk 0:00:31.8]} 23... Nxb5 {[%clk
0:01:46.6]} 24. axb5 {[%clk 0:00:32.4]} 24... d3 {[%clk 0:01:46.6]} 25. Bxg7
{[%clk 0:00:26]} 25... Kxg7 {[%clk 0:01:47.5]} 26. Red1 {[%clk 0:00:14.5]} 26...
dxc2 {[%clk 0:01:46.4]} 27. Rxd8 {[%clk 0:00:14.2]} 27... Rxd8 {[%clk
0:01:45.9]} 28. Ne1 {[%clk 0:00:01.5]} 28... Rd1 {[%clk 0:01:45.6]} 0-1

[Event "Early-Titled-Tuesday-Blitz-November-28-2023"]
[Site "Chess.com"]
[Date "2023.11.28"]
[Round "9"]
[White "atalz0"]
[Black "nitpicker"]
[Result "1-0"]
[WhiteElo "2489"]
[BlackElo "2329"]
[TimeControl "180+1"]
[EndTime "9:49:59 PST"]
[Termination "atalz0 won on time"]

1. d4 {[%clk 0:03:00.9]} 1... Nf6 {[%clk 0:02:59.2]} 2. c4 {[%clk 0:03:01.3]}
2... e6 {[%clk 0:02:59.1]} 3. Nc3 {[%clk 0:03:01.3]} 3... Bb4 {[%clk 0:02:59.1]}
4. Qc2 {[%clk 0:03:01.9]} 4... d5 {[%clk 0:02:57.9]} 5. cxd5 {[%clk 0:03:01.3]}
5... exd5 {[%clk 0:02:56.6]} 6. Bf4 {[%clk 0:03:01.9]} 6... O-O {[%clk
0:02:47.3]} 7. e3 {[%clk 0:03:02.3]} 7... c6 {[%clk 0:02:39.3]} 8. Bd3 {[%clk
0:03:01.8]} 8... Nbd7 {[%clk 0:02:33]} 9. h3 {[%clk 0:02:55.9]} 9... Re8 {[%clk
0:02:32.8]} 10. Nf3 {[%clk 0:02:55.6]} 10... b6 {[%clk 0:02:29.7]} 11. O-O
{[%clk 0:02:54.6]} 11... Bb7 {[%clk 0:02:28.5]} 12. Rfd1 {[%clk 0:02:49.9]}
12... a5 {[%clk 0:02:18.6]} 13. Rac1 {[%clk 0:02:18.7]} 13... Rc8 {[%clk
0:02:10.1]} 14. Ne5 {[%clk 0:02:05.6]} 14... h6 {[%clk 0:01:57.8]} 15. Bf5
{[%clk 0:01:55.5]} 15... Ra8 {[%clk 0:01:38.4]} 16. Na4 {[%clk 0:01:41.1]} 16...
Re7 {[%clk 0:00:35.1]} 17. Nxc6 {[%clk 0:01:23.4]} 17... Bxc6 {[%clk 0:00:28.1]}
18. Qxc6 {[%clk 0:01:24.3]} 18... Re8 {[%clk 0:00:04.7]} 19. Bc7 {[%clk
0:01:20.9]} 19... Qc8 {[%clk 0:00:02.8]} 20. Nxb6 {[%clk 0:01:20.4]} 20... Qa6
{[%clk 0:00:01.5]} 21. Nxd7 {[%clk 0:01:18]} 1-0